[Event "USA Senior-ch TB 2022"]
[Site "Saint Louis"]
[Date "2022.07.19"]
[Round "1.1"]
[White "Shabalov, Alexander"]
[Black "Dlugy, Maxim"]
[Result "1-0"]
[ECO "B01"]
[WhiteElo "2510"]
[BlackElo "2513"]
[Annotator "TA"]
[PlyCount "97"]
[EventDate "2022.07.07"]
[EventType "tourn"]
[EventCountry "USA"]
[SourceTitle "playchess.com"]
[Source "ChessBase"]
[SourceQuality "1"]
[TimeControl "180+2"]

{[%evp 9,97,33,58,39,34,43,40,35,40,16,33,33,37,8,44,16,33,11,17,16,21,10,45,8,20,27,20,-3,10,2,27,20,66,0,0,0,0,0,0,0,0,0,0,0,107,94,103,85,215,176,165,31,31,34,87,0,108,0,95,90,125,126,143,141,367,368,368,358,366,355,351,208,198,159,463,127,127,127,143,141,163,166,164,110,125,137,6022,6007,29991,29992]} 1. e4 {[%emt 0:00:00]} d5 {[%emt 0:00:00]} 2. exd5 {[%emt 0:00:00]} Qxd5 {[%emt 0:00:00]} 3. Nc3 {[%emt 0:00:00]} Qd6 {[%emt 0:00:00]} 4. d4 {[%emt 0:00:00]} c6 {[%emt 0:00:00]} 5. Nf3 {[%emt 0:00:00]} Nf6 {[%emt 0:00:00]} 6. g3 {[%emt 0:00:00] B01: Scandinavian Defence.} Bf5 {[%emt 0:00:00]} 7. Bg2 {[%emt 0:00:00]} e6 {[%emt 0:00:00]} 8. O-O {[%emt 0:00:00] White is slightly better.} h6 {[%emt 0:00:00]} 9. Ne2 {[%emt 0:00:00]} Be7 {[%emt 0:00:00]} 10. c4 {[%emt 0:00:00]} O-O {[%emt 0:00:00]} 11. Bf4 {[%emt 0:00:00]} Qd8 {[%emt 0:00:00]} 12. Nc3 {[%emt 0:00:00] [#]} Bd6 $146 {[%emt 0:00:00]} ({Predecessor:} 12... Qb6 13. Qe2 Re8 14. Rfd1 Nbd7 15. h3 Rad8 16. g4 Bg6 17. Ne5 Nxe5 18. dxe5 Nd7 {1-0 (49) Shyam,N (2385)-Kasparov,S (2462) Kathmandu 2018}) 13. Be3 {[%emt 0:00:00]} Nbd7 {[%emt 0:00:00]} 14. a3 {[%emt 0:00:00]} a5 {[%emt 0:00:00]} 15. h3 {[%emt 0:00:00]} Qc7 {[%emt 0:00:00]} 16. Nd2 {[%emt 0:00:00]} Rfd8 {[%emt 0:00:00]} 17. c5 {[%emt 0:00:00]} Be7 {[%emt 0:00:00]} 18. b4 {[%emt 0:00:00]} e5 {[%emt 0:00:00]} 19. Nf3 {[%emt 0:00:00]} exd4 {[%emt 0:00:00]} 20. Nxd4 {[%emt 0:00:00]} (20. Bf4 Qc8 21. Na4 (21. Nxd4 Nxc5 22. bxc5 Bxc5 $11) 21... axb4 22. Nxd4 Be4 23. axb4 Bxg2 24. Kxg2 Nd5 $17) 20... Ne5 {[%emt 0:00:00]} (20... Bh7 $11) 21. Qb3 {[%emt 0:00:00]} (21. f4 $14) 21... Bd3 $11 {[%emt 0:00:00]} 22. Rfd1 {[%emt 0:00:00]} Bc4 {[%emt 0:00:00]} 23. Qc2 {[%emt 0:00:00]} axb4 {[%emt 0:00:00]} 24. axb4 {[%emt 0:00:00]} Rxa1 {[%emt 0:00:00]} 25. Rxa1 {[%emt 0:00:00]} Bd3 {[%emt 0:00:00]} 26. Qb3 {[%emt 0:00:00]} Nc4 {[%emt 0:00:00] [#]} (26... Bc4 $11 27. Qc2 Bd3) 27. Ncb5 $1 $16 {[%emt 0:00:00][%mdl 512]} cxb5 {[%emt 0:00:00]} 28. Qxd3 {[%emt 0:00:00]} Qd7 {[%emt 0:00:00]} (28... Bf8 $16) 29. Qf5 {[%emt 0:00:00]} Qe8 {[%emt 0:00:00]} 30. Re1 {[%emt 0:00:00]} (30. Bxb7 Nxe3 31. fxe3 Bxc5 $1 32. bxc5 Qxe3+ 33. Qf2 Qxd4 34. Qxd4 Rxd4 $15) ({White should try} 30. Nc2 $1 $18) 30... Nxe3 $14 {[%emt 0:00:00]} 31. fxe3 {[%emt 0:00:00]} Bf8 $1 {[%emt 0:00:00]} 32. Qf1 {[%emt 0:00:00] 0x0.00168535e271dp-1022s more active pieces.} (32. Kf2 $16) 32... Qe5 {[%emt 0:00:00]} (32... Nd5 $1 $11 {keeps the balance.}) 33. c6 {[%emt 0:00:00]} (33. Qf4 $16 Qe7 34. Nf5) 33... Qxg3 {[%emt 0:00:00]} (33... Bxb4 $11 34. Re2 b6) 34. Nf5 $36 {[%emt 0:00:29][%mdl 2048] Keeping Black busy.} Qe5 {[%emt 0:00:00] White must now prevent ...bxc6.} 35. cxb7 {[%emt 0:00:02]} Rb8 {[%emt 0:00:22]} (35... Bxb4 $2 36. Ra1 Rf8 37. Ra8 $18) 36. Qf4 $1 {[%emt 0:00:08]} Nd7 {[%emt 0:01:00]} (36... Qxf4 $16 {was worth a try.} 37. exf4 Kh7) 37. Qxe5 $18 {[%emt 0:00:17]} Nxe5 {[%emt 0:00:02]} 38. Rc1 {[%emt 0:00:20]} Nc4 {[%emt 0:00:25]} 39. Ra1 {[%emt 0:00:02] Hoping for Ra8.} Nb6 {[%emt 0:00:47]} 40. Nd4 {[%emt 0:00:39]} (40. Ra5 $142) 40... Bxb4 {[%emt 0:00:08]} 41. Ra7 {[%emt 0:00:08] Strongly threatening Nc6.} Re8 $2 {[%emt 0:01:08] [#]} (41... Bd6 $16 {is a better chance.} 42. Ra6 (42. Nxb5 Bg3 $18) 42... Bc5) 42. Nc6 $2 {[%emt 0:00:14]} (42. Bd5 $1 $18 {[%cal Od5f7][%mdl 512]} Rf8 {[#]} 43. Bxf7+ $1 {[%mdl 512]} Kh7 44. b8=B Rxb8 45. Nc6 (45. Nxb5 Nc8 $11)) 42... Bd6 $16 {[%emt 0:00:02]} 43. Ra6 {[%emt 0:00:29]} Nd7 {[%emt 0:00:05]} 44. Nd4 {[%emt 0:00:03][%csl LRb5,LRd6]} (44. Ra8 Nb8 $16) 44... Bb8 {[%emt 0:00:02]} 45. Bc6 {[%emt 0:00:03]} Rd8 {[%emt 0:00:02]} 46. Bxd7 {[%emt 0:00:02]} ({Don't play} 46. Bxb5 $6 Nc5 $14) (46. Ra8 $18 {Threatens to win with Bxd7.} Ne5 47. Bxb5) 46... Rxd7 {[%emt 0:00:02]} 47. Rb6 {[%emt 0:00:12]} Kf8 $2 {[%emt 0:00:21][%mdl 8192]} (47... Kh7 $16 48. Kf2 (48. Nxb5 Rd1+ 49. Kf2 Rb1 $11) (48. Rxb5 Rd6 $18) 48... g6 49. Rxb5 Rd6) 48. Nc6 $18 {[%emt 0:00:02]} Bc7 {[%emt 0:00:02]} 49. b8=Q+ {[%emt 0:00:05] Weighted Error Value: White=0.39/Black=0.50} 1-0

[Event "USA Senior-ch TB 2022"]
[Site "Saint Louis"]
[Date "2022.07.19"]
[Round "1.2"]
[White "Gurevich, Dmitry"]
[Black "Christiansen, Larry"]
[Result "1/2-1/2"]
[ECO "D37"]
[WhiteElo "2351"]
[BlackElo "2577"]
[Annotator "TA"]
[PlyCount "85"]
[EventDate "2022.07.07"]
[EventType "tourn"]
[EventCountry "USA"]
[SourceTitle "playchess.com"]
[Source "ChessBase"]
[SourceQuality "1"]
[TimeControl "180+2"]

{[%evp 9,85,26,27,29,33,24,32,30,37,26,34,27,39,10,13,15,10,14,8,14,18,12,34,31,30,0,-7,-34,-27,-37,-57,-62,-54,-50,106,95,127,108,121,113,116,134,151,62,103,-16,68,16,16,16,16,16,16,16,16,20,20,32,56,0,12,15,7,0,0,0,0,0,-3,-737,-589,-462,0,0,0,6,9,10]} 1. d4 {[%emt 0:00:00]} Nf6 {[%emt 0:00:00]} 2. c4 {[%emt 0:00:00]} e6 {[%emt 0:00:00]} 3. Nf3 {[%emt 0:00:00]} d5 {[%emt 0:00:00]} 4. Nc3 {[%emt 0:00:00]} a6 {[%emt 0:00:00]} 5. cxd5 {[%emt 0:00:00]} exd5 {[%emt 0:00:00]} 6. Bg5 {[%emt 0:00:00] D37: Queen's Gambit Declined: 5 Bf4.} Be6 {[%emt 0:00:00]} 7. e3 {[%emt 0:00:00]} Nbd7 {[%emt 0:00:00]} 8. Bd3 {[%emt 0:00:00] White is slightly better.} Bd6 {[%emt 0:00:00]} 9. O-O {[%emt 0:00:00]} O-O {[%emt 0:00:00]} 10. h3 {[%emt 0:00:00]} h6 {[%emt 0:00:00]} 11. Bh4 {[%emt 0:00:00]} Re8 {[%emt 0:00:00] [#]} 12. Nd2 $146 {[%emt 0:00:00]} ({Predecessor:} 12. Ne2 c6 13. Bg3 Ne4 14. Bxe4 dxe4 15. Nd2 Bxg3 16. Nxg3 f5 17. Ne2 Nf6 18. Rc1 {½-½ (47) Grischuk,A (2754)-Carlsen,M (2857) Chess.com INT 2016}) 12... c5 {[%emt 0:00:00]} 13. f4 {[%emt 0:00:00]} cxd4 {[%emt 0:00:00]} 14. exd4 {[%emt 0:00:00]} Nb6 $1 {[%emt 0:00:00]} 15. Qf3 {[%emt 0:00:00]} Rc8 {[%emt 0:00:00]} 16. Rae1 {[%emt 0:00:00]} Be7 {[%emt 0:00:00]} 17. g4 {[%emt 0:00:00]} Nc4 {[%emt 0:00:00]} 18. Nxc4 {[%emt 0:00:00]} (18. Bxc4 $5 dxc4 19. Qf2 $11) 18... dxc4 {[%emt 0:00:00]} 19. Bb1 {[%emt 0:00:00] aiming for g5.} Qxd4+ {[%emt 0:00:00]} 20. Bf2 {[%emt 0:00:00]} Qd7 {[%emt 0:00:00]} 21. g5 {[%emt 0:00:00]} Bxh3 $2 {[%emt 0:00:00]} (21... hxg5 $15 22. fxg5 Nh7) 22. gxf6 $16 {[%emt 0:00:00]} Bxf6 {[%emt 0:00:00] [#]} 23. Nd5 $1 {[%emt 0:00:00]} Bxf1 {[%emt 0:00:00]} 24. Nxf6+ {[%emt 0:00:00]} gxf6 {[%emt 0:00:00]} 25. Rxf1 {[%emt 0:00:00] Qh5 is the strong threat. Chess con chili.} f5 {[%emt 0:00:00]} 26. Rd1 {[%emt 0:00:00]} (26. Qh3 $16 Rc6 27. Bxf5) 26... Qe6 {[%emt 0:00:00] [#]} 27. Rd5 {[%emt 0:00:00] White is more active.} ({Much worse is} 27. Qxb7 $6 Qg6+ 28. Kf1 (28. Qg2 Rcd8 $15) 28... Rb8 $11) (27. Kh1 $1 $16) 27... Qe2 {[%emt 0:00:00]} (27... Qg6+ $11 28. Kf1 Qg4) 28. Qg3+ {[%emt 0:01:26]} (28. Qg2+ $14 Qg4 29. Bxf5 Qxg2+ 30. Kxg2) 28... Qg4 $11 {[%emt 0:00:00] White must now prevent ...Rcd8.} 29. Bxf5 {[%emt 0:00:09][%mdl 64] Pin} Qxg3+ {[%emt 0:00:00]} 30. Bxg3 {[%emt 0:00:02] A strong pair of Bishops.} Rcd8 {[%emt 0:00:00]} 31. Rxd8 {[%emt 0:00:24]} Rxd8 {[%emt 0:00:00]} 32. Be1 $1 {[%emt 0:00:04]} Rd4 {[%emt 0:00:00]} 33. Bc8 {[%emt 0:00:07][%mdl 1024] White has compensation.} b6 {[%emt 0:00:50]} 34. f5 {[%emt 0:00:30]} b5 {[%emt 0:00:25][%cal Oa6a5]} 35. Bxa6 {[%emt 0:00:05]} Rg4+ {[%emt 0:00:03]} 36. Kh2 {[%emt 0:00:12]} Re4 {[%emt 0:00:02]} 37. Bc3 {[%emt 0:00:14]} b4 {[%emt 0:00:02]} 38. Bxb4 {[%emt 0:00:19]} Re2+ {[%emt 0:00:02]} 39. Kg3 $2 {[%emt 0:00:13][%mdl 8192]} (39. Kg1 $11 Rxb2 40. a3) 39... Rxb2 $19 {[%emt 0:00:02]} 40. Be1 {[%emt 0:00:04] [#]} Rxa2 $2 {[%emt 0:00:05]} ({Black should play} 40... c3 $1 $19 41. Bc4 (41. Bxc3 $2 Rxa2 42. Kh4 Rxa6 $19) 41... Rc2) 41. Bxc4 $11 {[%emt 0:00:03] The position is equal.} Rc2 {[%emt 0:00:11]} 42. Bd3 {[%emt 0:00:08]} Rc1 {[%emt 0:00:04]} 43. Kf2 {[%emt 0:00:07] Weighted Error Value: White=0.33/Black=0.28 (precise)} 1/2-1/2

[Event "USA Senior-ch TB 2022"]
[Site "Saint Louis"]
[Date "2022.07.19"]
[Round "2.1"]
[White "Dlugy, Maxim"]
[Black "Gurevich, Dmitry"]
[Result "1/2-1/2"]
[ECO "A45"]
[WhiteElo "2513"]
[BlackElo "2351"]
[Annotator "TA"]
[PlyCount "121"]
[EventDate "2022.07.07"]
[EventType "tourn"]
[EventCountry "USA"]
[SourceTitle "playchess.com"]
[Source "ChessBase"]
[SourceQuality "1"]
[TimeControl "180+2"]

{[%evp 9,121,16,25,22,19,0,35,-19,-12,-14,-6,-15,-7,-13,0,-8,30,21,19,6,13,0,0,0,128,129,127,126,173,164,215,211,220,213,214,213,341,237,231,222,223,216,195,150,120,104,124,75,74,74,74,74,67,70,74,67,245,0,0,0,0,0,0,0,0,0,0,0,0,-121,0,0,0,0,0,-661,-653,-975,-727,-1003,-897,-29965,-29964,-4694,-11868,-5724,-1843,-5193,-5085,-29970,-29973,-29975,-29974,-29976,-29974,-29970,-29975,-29975,-29973,-29959,-29963,-29976,-29977,-29980,-29981,-29981,-29965,-29964,-29964,-11669,8,8,8,8]} 1. d4 {[%emt 0:00:00]} Nf6 {[%emt 0:00:00]} 2. Bf4 {[%emt 0:00:00]} c5 {[%emt 0:00:00]} 3. dxc5 {[%emt 0:00:00]} e6 {[%emt 0:00:00]} 4. Bd6 {[%emt 0:00:00]} Bxd6 {[%emt 0:00:00]} 5. Qxd6 {[%emt 0:00:00] [#]} Qe7 $146 {[%emt 0:00:00]} ({Predecessor:} 5... b6 6. cxb6 Nc6 7. Nd2 Ba6 8. b7 Rb8 9. Nb3 Rxb7 10. c3 Rb6 11. Qa3 d6 {0-1 (37) Ostrovskiy,A (2431)-Martinez Alcantara,J (2620) Chess.com INT 2021}) 6. Nc3 {[%emt 0:00:00] A45: Trompowsky Attack.} Na6 $1 {[%emt 0:00:00]} 7. Nb5 {[%emt 0:00:00]} Ne4 {[%emt 0:00:00]} (7... Kf8 $5 {[%cal Ra6c5]}) 8. Qxe7+ {[%emt 0:00:00]} (8. Qd4 $14 Qxc5 9. e3 (9. Qxc5 Nexc5 10. Nd6+ Ke7 $11) 9... Qxd4 10. exd4) 8... Kxe7 $11 {[%emt 0:00:00]} 9. f3 {[%emt 0:00:00]} Nexc5 {[%emt 0:00:00]} 10. e4 {[%emt 0:00:00]} Nb4 {[%emt 0:00:00]} 11. Kd2 {[%emt 0:00:00]} a6 {[%emt 0:00:00]} 12. Nc3 {[%emt 0:00:00][%cal Bb5c3,Bc3a4,Ba4b6][%mdl 32]} b5 {[%emt 0:00:00]} 13. a3 {[%emt 0:00:00]} Nc6 {[%emt 0:00:00]} 14. b4 $36 {[%emt 0:00:00][%mdl 2048] White fights for an advantage.} Nb7 {[%emt 0:00:00]} 15. a4 {[%emt 0:00:00]} Nxb4 {[%emt 0:00:00]} 16. axb5 {[%emt 0:00:00]} a5 {[%emt 0:00:00]} (16... d5 $11 {keeps the balance.}) 17. Na4 $1 $16 {[%emt 0:00:00]} d5 {[%emt 0:00:00]} 18. Nb6 {[%emt 0:00:00]} ({Don't do} 18. c3 dxe4 19. fxe4 (19. cxb4 axb4 20. fxe4 Rd8+ 21. Ke3 b3 $17) 19... Nd6) 18... Rb8 {[%emt 0:00:00]} (18... Ra7 $16) 19. c3 $18 {[%emt 0:00:00]} Nc5 {[%emt 0:00:00]} (19... dxe4 $142 20. cxb4 axb4 21. fxe4 Nc5 22. Ra7+ Bb7) 20. cxb4 {[%emt 0:00:00]} Nb3+ {[%emt 0:00:00]} 21. Kc3 {[%emt 0:00:00]} Nxa1 {[%emt 0:00:00]} 22. bxa5 {[%emt 0:00:00] Chess con chili.} dxe4 {[%emt 0:00:00]} (22... Rxb6 {is a better defense.} 23. axb6 dxe4) 23. fxe4 {[%emt 0:00:00]} Rd8 {[%emt 0:00:00]} 24. Be2 {[%emt 0:00:00]} Rxb6 {[%emt 0:00:17]} 25. axb6 {[%emt 0:00:00]} Bb7 {[%emt 0:00:06]} 26. Nf3 {[%emt 0:00:00]} Rc8+ {[%emt 0:00:10]} 27. Bc4 {[%emt 0:00:00]} Nc2 {[%emt 0:00:15][%mdl 64] Decoy} 28. Kxc2 {[%emt 0:00:00]} (28. Ne5 $142 Na3 29. Kb4 Nc2+ 30. Ka4) 28... Rxc4+ $16 {[%emt 0:00:03][%mdl 4096] Endgame KRB-KRN} 29. Kb3 {[%emt 0:00:00]} Rxe4 {[%emt 0:00:27]} 30. Rc1 {[%emt 0:00:00] Black must now prevent Rc7+.} Bd5+ {[%emt 0:00:03]} 31. Ka3 {[%emt 0:00:00]} Kd6 {[%emt 0:00:24]} 32. Rc7 {[%emt 0:00:00] Ng5 is the strong threat.} e5 $2 {[%emt 0:00:32]} (32... Rf4 $14) 33. Ng5 $2 {[%emt 0:00:00]} (33. Rc8 $1 $18 {[%cal Rc8d8]}) 33... Rf4 $11 {[%emt 0:00:18]} 34. Rc8 {[%emt 0:00:00]} Bxg2 {[%emt 0:00:18] aiming for ...h6.} 35. Rc7 {[%emt 0:00:00]} Bd5 {[%emt 0:00:06]} 36. Rc8 $1 {[%emt 0:00:36]} Bg2 {[%emt 0:00:33]} 37. Rc2 {[%emt 0:00:13]} Bb7 {[%emt 0:00:10]} 38. Rc7 {[%emt 0:00:07]} Bd5 {[%emt 0:00:03]} 39. Nxh7 {[%emt 0:00:02] [#]} (39. Rc8 $1 $11 {was the only way to keep the balance.}) 39... e4 {[%emt 0:00:08]} (39... Rf1 $1 $17 {Strongly threatening ...e4.} 40. Kb2 e4) 40. Nf8 {[%emt 0:00:02] Hoping for Rd7+.} e3 {[%emt 0:00:02]} 41. Rd7+ {[%emt 0:00:02]} Kc5 {[%emt 0:00:03]} 42. b7 $2 {[%emt 0:00:16][%mdl 8192] [#]} (42. Rxd5+ $11 Kxb6 43. Nd7+ Ka5 44. Kb3 (44. Re5 Rd4 $16)) 42... Bxb7 $1 $19 {[%emt 0:00:04][%mdl 512] Threatens to win with ...e2.} 43. Rxb7 {[%emt 0:00:02] [#] KRN-KR} (43. Rd1 Re4) 43... Re4 {[%emt 0:00:08] Against Re7} 44. Rc7+ {[%emt 0:00:09]} Kxb5 {[%emt 0:00:04]} 45. Rc1 {[%emt 0:00:02]} e2 {[%emt 0:00:02]} 46. Re1 {[%emt 0:00:02]} Kc4 {[%emt 0:00:02]} 47. Nd7 {[%emt 0:00:02]} Kd4 {[%emt 0:00:05]} (47... Kd3 $142 48. Nc5+ Kd2 49. Rxe2+ Rxe2) 48. Kb3 {[%emt 0:00:03]} Ke3 {[%emt 0:00:02] ( -> ...Kd2)} 49. Nc5 {[%emt 0:00:02]} Re5 {[%emt 0:00:07]} 50. Kc4 {[%emt 0:00:03]} Kd2 {[%emt 0:00:03]} 51. Rg1 {[%emt 0:00:31]} e1=Q {[%emt 0:00:03]} 52. Nb3+ {[%emt 0:00:02]} Kd1 {[%emt 0:00:02]} 53. Rxe1+ {[%emt 0:00:02]} Rxe1 {[%emt 0:00:02] KR-KN} 54. Nd4 {[%emt 0:00:02]} Rh1 {[%emt 0:00:02]} 55. Nf3 {[%emt 0:00:02]} Ke2 {[%emt 0:00:02]} 56. Ng5 {[%emt 0:00:02]} f6 {[%emt 0:00:02]} 57. Ne6 Rxh2 58. Nxg7 {[%emt 0:00:04]} Rh4+ 59. Kd5 Ke3 $2 {[%emt 0:00:07]} (59... Rf4 $19 60. Ne6 Ke3) 60. Nf5+ $11 {[%emt 0:00:04]} Kf4 {[%emt 0:00:02]} 61. Nxh4 {[%emt 0:00:02] Quite a comeback for White.  Weighted Error Value: White=0.54/Black=0.30} 1/2-1/2

[Event "USA Senior-ch TB 2022"]
[Site "Saint Louis"]
[Date "2022.07.19"]
[Round "2.2"]
[White "Akopian, Vladimir"]
[Black "Shabalov, Alexander"]
[Result "1/2-1/2"]
[ECO "A35"]
[WhiteElo "2620"]
[BlackElo "2510"]
[Annotator "TA"]
[PlyCount "60"]
[EventDate "2022.07.07"]
[EventType "tourn"]
[EventCountry "USA"]
[SourceTitle "playchess.com"]
[Source "ChessBase"]
[SourceQuality "1"]
[TimeControl "180+2"]

{[%evp 13,60,44,51,35,45,10,27,0,0,0,0,0,0,0,0,0,0,-4,4,0,0,0,17,12,27,35,48,10,22,0,0,-8,0,0,0,-37,-14,-20,-21,-18,-3,-212,-197,-208,-202,-198,-197,-135,0]} 1. Nf3 {[%emt 0:00:00]} c5 {[%emt 0:00:00]} 2. c4 {[%emt 0:00:00]} Nc6 {[%emt 0:00:00]} 3. Nc3 {[%emt 0:00:00]} g6 {[%emt 0:00:00]} 4. e3 {[%emt 0:00:00]} Bg7 {[%emt 0:00:00]} 5. d4 {[%emt 0:00:00]} d6 {[%emt 0:00:00]} 6. d5 {[%emt 0:00:00]} Ne5 {[%emt 0:00:00]} 7. Nxe5 {[%emt 0:00:00]} Bxe5 {[%emt 0:00:00]} 8. Qc2 {[%emt 0:00:00] A35: Symmetrical English: 2 Nc3 Nc6 3 Nf3.} e6 {[%emt 0:00:00]} 9. Bd3 {[%emt 0:00:00]} Ne7 {[%emt 0:00:00] [#]} 10. Be4 $146 {[%emt 0:00:00] White has an edge.} ({Predecessor:} 10. e4 exd5 11. cxd5 O-O 12. Bg5 f6 13. Be3 f5 14. f4 Bd4 15. Qf2 fxe4 16. Bxe4 {0-1 (34) Korpa,B (2433)-Rajlich,I (2392) Budapest 2015}) 10... O-O {[%emt 0:00:00]} 11. O-O {[%emt 0:00:00]} Rb8 {[%emt 0:00:00]} 12. Rd1 {[%emt 0:00:00]} exd5 13. Nxd5 {[%emt 0:00:00]} b5 {[%emt 0:00:00]} 14. cxb5 {[%emt 0:00:00]} Rxb5 {[%emt 0:00:00]} 15. Rb1 {[%emt 0:00:00]} Bg4 {[%emt 0:00:00]} 16. Rd2 {[%emt 0:00:00]} Nxd5 {[%emt 0:00:00]} 17. Bxd5 {[%emt 0:00:00]} Qh4 {[%emt 0:00:00]} 18. g3 {[%emt 0:00:00]} Qh5 {[%emt 0:00:00][%cal Oc5c4]} 19. b3 {[%emt 0:00:00]} Bf5 {[%emt 0:00:00]} 20. Be4 {[%emt 0:00:00]} (20. e4 $5 {[%cal Re4f5]} Bh3 21. Rd3 $14) 20... Be6 {[%emt 0:00:00]} 21. Bb2 {[%emt 0:00:00]} Bxb2 {[%emt 0:00:00]} 22. Rxb2 {[%emt 0:00:00]} d5 {[%emt 0:00:00]} 23. Bg2 {[%emt 0:00:00]} Rc8 {[%emt 0:00:00]} 24. h4 {[%emt 0:00:38]} Qe5 {[%emt 0:00:07]} (24... c4 $5 {[%cal Rc4c3]} 25. a4 (25. bxc4 dxc4 26. Qc3 Rxb2 $15) 25... Rb6 26. bxc4 dxc4 27. Rxb6 axb6 $15) 25. Qc1 {[%emt 0:00:34]} a5 {[%emt 0:00:07]} 26. Rbc2 {[%emt 0:00:11]} a4 {[%emt 0:00:31]} 27. Bf1 $2 {[%emt 0:01:03] [#] White does not recover from this.} (27. bxa4 $11 {and White stays safe.} Ra5 28. Qb2 Qxb2 29. Rxb2) 27... axb3 $19 {Black is clearly better.} 28. axb3 {[%emt 0:00:02]} Rxb3 {[%emt 0:00:15]} 29. Rxc5 {[%emt 0:00:02]} Rxc5 {[%emt 0:00:12]} 30. Qxc5 {[%emt 0:00:02]} Rc3 {[%emt 0:00:10] Weighted Error Value: White=0.24 (precise) /Black=0.05 (flawless)} ({Better is} 30... Rb1 $17 31. Ra2 h5) 1/2-1/2